lending/lending_fUSD_20241228
["ID","MTS","AMOUNT","RATE_DAILY","PERIOD"]
[346957409,1735426861162,522.04294058,0.00022999,120]
[346957410,1735426862058,500.0,0.00022999,120]
[346957411,1735426862323,500.0,0.00022999,120]
[346957412,1735426862606,500.0,0.00022999,120]
[346957413,1735426862877,523.95,0.00022999,120]
[346957414,1735426863471,500.0,0.00022999,120]
[346957415,1735426864652,500.0,0.00022999,120]
[346957416,1735426864946,500.0,0.00022999,120]
[346957417,1735426865219,500.0,0.00022999,120]
[346957418,1735426865306,500.0,0.00022999,120]
[346957419,1735426865536,500.0,0.00022999,120]
[346957420,1735426865598,500.0,0.00022999,120]
[346957421,1735426865824,537.76252879,0.00022999,120]
[346957422,1735426865888,160.47,0.00022999,120]
[346957423,1735426867033,500.0,0.00022999,120]
[346957424,1735426867309,500.0,0.00022999,120]
[346957425,1735426869740,500.0,0.00022999,120]
[346957426,1735426869930,500.0,0.00022999,120]
[346957427,1735426870002,500.0,0.00022999,120]
[346957428,1735426870315,546.66,0.00022999,120]
[346957429,1735426871854,500.0,0.00022999,120]
[346957430,1735426872391,508.67654681,0.00022999,120]
[346957431,1735426872461,500.0,0.00022999,120]
[346957432,1735426872524,501.07779395,0.00022999,120]
[346957433,1735426872659,290.13,0.00022999,120]
[346957434,1735426874503,352.96709508,0.00022999,120]
[346957435,1735426874931,500.0,0.00022999,120]
[346957436,1735426875049,500.0,0.00022999,120]
[346957437,1735426875334,478.65,0.00022999,120]
[346957438,1735426877753,503.82465012,0.00022999,120]
[346957439,1735426880338,500.0,0.00022999,120]
[346957440,1735426880395,500.0,0.00022999,120]
[346957441,1735426880624,298.45,0.00022999,120]
[346957442,1735426881262,321.66168595,0.00022999,120]
[346957443,1735426882188,504.92325947,0.00022999,120]
[346957444,1735426882683,500.0,0.00022999,120]
[346957445,1735426882748,501.97178148,0.00022999,120]
[346957446,1735426883205,500.0,0.00022999,120]
[346957447,1735426884898,500.0,0.00022999,120]
[346957448,1735426886305,500.0,0.00022999,120]
[346957449,1735426886964,500.0,0.00022999,120]
[346957450,1735426887074,501.86209126,0.00022999,120]
[346957451,1735426887295,500.0,0.00022999,120]
[346957452,1735426887570,500.0,0.00022999,120]
[346957453,1735426889085,500.0,0.00022999,120]
[346957454,1735426889210,500.0,0.00022999,120]
[346957455,1735426889784,508.02490955,0.00022999,120]
[346957456,1735426889863,500.0,0.00022999,120]
[346957457,1735426890475,500.0,0.00022999,120]
[346957458,1735426890563,609.85,0.00022999,120]
[346957459,1735426891164,500.0,0.00022999,120]
[346957460,1735426891552,500.0,0.00022999,120]
[346957461,1735426892708,500.0,0.00022999,120]
[346957462,1735426892978,367.91,0.00022999,120]
[346957463,1735426893042,501.50055665,0.00022999,120]
[346957464,1735426893631,500.0,0.00022999,120]
[346957465,1735426894169,505.75913296,0.00022999,120]
[346957466,1735426894866,501.70776374,0.00022999,120]
[346957467,1735426894994,446.35969211,0.00022999,120]
[346957468,1735426895225,500.0,0.00022999,120]
[346957469,1735426895485,215.62,0.00022999,120]
[346957470,1735426896238,257.38273939,0.00022999,120]
[346957471,1735426896342,500.0,0.00022999,120]
[346957472,1735426898109,500.0,0.00022999,120]
[346957473,1735426898170,500.0,0.00022999,120]
[346957474,1735426899854,502.2424595,0.00022999,120]
[346957475,1735426900416,500.0,0.00022999,120]
[346957476,1735426901115,500.0,0.00022999,120]
[346957477,1735426902131,500.0,0.00022999,120]
[346957478,1735426902269,500.9344597,0.00022999,120]
[346957479,1735426902424,500.0,0.00022999,120]
[346957480,1735426902682,500.0,0.00022999,120]
[346957481,1735426902953,500.0,0.00022999,120]
[346957482,1735426903222,175.8,0.00022999,120]
[346957483,1735426903682,589.25,0.00022999,120]
[346957484,1735426904794,501.9191833,0.00022999,120]
[346957485,1735426905473,497.33953466,0.00022999,120]
[346957486,1735426905538,192.74154748,0.00022999,120]
[346957487,1735426907552,500.0,0.00022999,120]
[346957488,1735426907680,500.0,0.00022999,120]
[346957489,1735426908568,501.02329629,0.00022999,120]
[346957490,1735426909636,500.0,0.00022999,120]
[346957491,1735426909887,500.0,0.00022999,120]
[346957492,1735426910002,500.0,0.00022999,120]
[346957493,1735426910119,500.0,0.00022999,120]
[346957494,1735426910380,609.07,0.00022999,120]
[346957495,1735426911041,605.53,0.00022999,120]
[346957496,1735426912072,500.0,0.00022999,120]
[346957497,1735426912391,360.83831878,0.00022999,120]
[346957498,1735426912740,501.09040036,0.00022999,120]
[346957499,1735426913641,500.0,0.00022999,120]
[346957500,1735426914502,506.88869849,0.00022999,120]
[346957501,1735426914880,501.80037962,0.00022999,120]
[346957502,1735426916253,500.0,0.00022999,120]
[346957503,1735426916342,500.0,0.00022999,120]
[346957504,1735426916607,383.79,0.00022999,120]
[346957505,1735426916663,500.0,0.00022999,120]
[346957506,1735426917102,500.0,0.00022999,120]
[346957507,1735426917361,500.0,0.00022999,120]
[346957508,1735426917627,308.16,0.00022999,120]
[346957509,1735426918631,500.0,0.00022999,120]
[346957510,1735426918721,500.45427851,0.00022999,120]
[346957511,1735426918776,500.0,0.00022999,120]
[346957512,1735426918841,500.0,0.00022999,120]
[346957513,1735426918898,507.20496041,0.00022999,120]
[346957514,1735426920677,500.0,0.00022999,120]
[346957515,1735426921001,500.0,0.00022999,120]
[346957516,1735426921230,500.0,0.00022999,120]
[346957517,1735426921320,500.0,0.00022999,120]
[346957518,1735426923011,500.0,0.00022999,120]
[346957519,1735426923144,500.0,0.00022999,120]
[346957520,1735426923387,319.09,0.00022999,120]
[346957521,1735426923638,500.0,0.00022999,120]
[346957522,1735426925713,500.0,0.00022999,120]
[346957523,1735426926442,501.65848959,0.00022999,120]
[346957524,1735426926605,504.51637448,0.00022999,120]
[346957525,1735426926744,500.0,0.00022999,120]
[346957526,1735426927754,500.0,0.00022999,120]
[346957527,1735426928780,500.0,0.00022999,120]
[346957528,1735426929007,506.84640645,0.00022999,120]
[346957529,1735426930243,500.0,0.00022999,120]
[346957530,1735426930812,500.0,0.00022999,120]
[346957531,1735426931123,500.0,0.00022999,120]
[346957532,1735426931859,302.47,0.00022999,120]
[346957533,1735426932090,500.95459808,0.00022999,120]
[346957534,1735426932550,503.54298829,0.00022999,120]
[346957535,1735426932760,500.0,0.00022999,120]
[346957536,1735426932819,500.0,0.00022999,120]
[346957537,1735426933916,500.0,0.00022999,120]
[346957538,1735426934761,504.87783311,0.00022999,120]
[346957539,1735426935390,500.0,0.00022999,120]
[346957540,1735426935492,500.0,0.00022999,120]
[346957541,1735426935915,500.0,0.00022999,120]
[346957542,1735426936207,500.0,0.00022999,120]
[346957543,1735426936276,500.0,0.00022999,120]
[346957544,1735426936450,337.57,0.00022999,120]
[346957545,1735426936636,500.0,0.00022999,120]
[346957546,1735426937044,502.30619803,0.00022999,120]
[346957547,1735426937313,500.0,0.00022999,120]
[346957548,1735426937877,627.6,0.00022999,120]
[346957549,1735426938740,500.0,0.00022999,120]
[346957550,1735426938798,500.0,0.00022999,120]
[346957551,1735426940979,500.0,0.00022999,120]
[346957552,1735426942659,501.92657454,0.00022999,120]
[346957553,1735426943120,502.94659594,0.00022999,120]
[346957554,1735426944764,500.0,0.00022999,120]
[346957555,1735426945037,500.0,0.00022999,120]
[346957556,1735426945587,500.0,0.00022999,120]
[346957557,1735426945935,500.0,0.00022999,120]
[346957558,1735426946086,500.0,0.00022999,120]
[346957559,1735426946356,300.89,0.00022999,120]
[346957560,1735426948285,500.0,0.00022999,120]
[346957561,1735426949613,448.67971347,0.00022999,120]
[346957562,1735426949854,500.0,0.00022999,120]
[346957563,1735426950131,214.33,0.00022999,120]
[346957564,1735426950848,503.77294446,0.00022999,120]
[346957565,1735426952127,500.0,0.00022999,120]
[346957566,1735426952409,500.0,0.00022999,120]
[346957567,1735426952565,500.0,0.00022999,120]
[346957568,1735426952861,500.0,0.00022999,120]
[346957569,1735426952943,481.12,0.00022999,120]
[346957570,1735426953006,631.49,0.00022999,120]
[346957571,1735426953258,501.97400747,0.00022999,120]
[346957572,1735426954887,308.17133826,0.00022999,120]
[346957573,1735426955165,500.0,0.00022999,120]
[346957574,1735426955442,500.0,0.00022999,120]
[346957575,1735426955500,500.75751731,0.00022999,120]
[346957576,1735426955556,625.59,0.00022999,120]
[346957577,1735426955699,215.17,0.00022999,120]
[346957578,1735426957855,500.0,0.00022999,120]
[346957579,1735426958114,500.0,0.00022999,120]
[346957580,1735426958424,377.88,0.00022999,120]
[346957581,1735426960291,500.0,0.00022999,120]
[346957582,1735426960611,500.0,0.00022999,120]
[346957583,1735426960673,500.0,0.00022999,120]
[346957584,1735426961022,500.0,0.00022999,120]
[346957585,1735426961577,501.87988602,0.00022999,120]
[346957586,1735426962674,500.0,0.00022999,120]
[346957587,1735426963063,500.0,0.00022999,120]
[346957588,1735426963175,500.0,0.00022999,120]
[346957589,1735426963404,500.0,0.00022999,120]
[346957590,1735426963836,539.42,0.00022999,120]
[346957591,1735426964787,500.0,0.00022999,120]
[346957592,1735426964948,319.67795783,0.00022999,120]
[346957593,1735426965851,500.0,0.00022999,120]
[346957594,1735426966997,501.5205337,0.00022999,120]
[346957595,1735426967140,504.88721778,0.00022999,120]
[346957596,1735426969443,500.0,0.00022999,120]
[346957597,1735426969619,500.0,0.00022999,120]
[346957598,1735426969723,503.71127669,0.00022999,120]
[346957599,1735426970237,500.0,0.00022999,120]
[346957600,1735426970505,500.0,0.00022999,120]
[346957601,1735426970748,500.0,0.00022999,120]
[346957602,1735426970961,242.52904692,0.00022999,120]
[346957603,1735426971017,614.24,0.00022999,120]
[346957604,1735426972124,504.30819779,0.00022999,120]
[346957605,1735426973044,500.0,0.00022999,120]
[346957606,1735426973357,500.0,0.00022999,120]
[346957607,1735426973418,347.2470736,0.00022999,120]
[346957608,1735426973481,554.68,0.00022999,120]
[346957609,1735426975440,500.0,0.00022999,120]
[346957610,1735426975683,444.96,0.00022999,120]
[346957611,1735426976070,500.0,0.00022999,120]
[346957612,1735426976198,501.66710532,0.00022999,120]
[346957613,1735426976313,500.0,0.00022999,120]
[346957614,1735426976580,500.0,0.00022999,120]
[346957615,1735426976791,500.0,0.00022999,120]
[346957616,1735426976841,348.01,0.00022999,120]
[346957617,1735426977792,170.96792898,0.00022999,120]
[346957618,1735426979042,535.95,0.00022999,120]
[346957619,1735426979267,502.57643635,0.00022999,120]
[346957620,1735426979367,500.0,0.00022999,120]
[346957621,1735426981149,535.6306313,0.00022999,120]
[346957622,1735426981433,500.0,0.00022999,120]
[346957623,1735426981754,445.22,0.00022999,120]
[346957624,1735426982204,589.32,0.00022999,120]
[346957625,1735426982556,500.0,0.00022999,120]
[346957626,1735426983358,508.91334825,0.00022999,120]
[346957627,1735426984052,500.0,0.00022999,120]
[346957628,1735426984181,333.72,0.00022999,120]
[346957629,1735426984333,500.0,0.00022999,120]
[346957630,1735426984600,373.58,0.00022999,120]
[346957631,1735426987187,500.0,0.00022999,120]
[346957632,1735426987954,500.0,0.00022999,120]
[346957633,1735426988233,500.0,0.00022999,120]
[346957634,1735426988484,500.0,0.00022999,120]
[346957635,1735426988543,500.0,0.00022999,120]
[346957636,1735426988768,504.84,0.00022999,120]
[346957637,1735426989722,500.0,0.00022999,120]
[346957638,1735426990036,500.0,0.00022999,120]
[346957639,1735426990297,500.0,0.00022999,120]
[346957640,1735426990569,578.36,0.00022999,120]
[346957641,1735426990662,500.0,0.00022999,120]
[346957642,1735426991322,500.0,0.00022999,120]
[346957643,1735426992017,500.0,0.00022999,120]
[346957644,1735426992823,500.0,0.00022999,120]
[346957645,1735426993090,629.97,0.00022999,120]
[346957646,1735426993354,504.22017083,0.00022999,120]
[346957647,1735426993967,500.0,0.00022999,120]
[346957648,1735426995090,503.97574955,0.00022999,120]
[346957649,1735426995150,500.0,0.00022999,120]
[346957650,1735426995488,189.59,0.00022999,120]
[346957651,1735426996200,561.37,0.00022999,120]
[346957652,1735426997598,562.75,0.00022999,120]
[346957653,1735426997651,500.0,0.00022999,120]
[346957654,1735426997701,500.0,0.00022999,120]
[346957655,1735426998041,500.0,0.00022999,120]
[346957656,1735426998255,473.89,0.00022999,120]
[346957657,1735426998414,500.0,0.00022999,120]
[346957658,1735426999590,500.0,0.00022999,120]
[346957659,1735426999854,466.25,0.00022999,120]
[346957660,1735427000334,500.0,0.00022999,120]
[346957661,1735427001750,502.41336828,0.00022999,120]
[346957662,1735427001820,503.7216798,0.00022999,120]
[346957663,1735427003042,507.07509447,0.00022999,120]
[346957664,1735427004077,501.97737873,0.00022999,120]
[346957665,1735427005558,500.0,0.00022999,120]
[346957666,1735427005814,218.71,0.00022999,120]
[346957667,1735427006323,500.0,0.00022999,120]
[346957668,1735427007402,268.35353127,0.00022999,120]
[346957669,1735427009377,498.69292853,0.00022999,120]
[346957670,1735427009668,500.0,0.00022999,120]
[346957671,1735427009954,500.0,0.00022999,120]
[346957672,1735427010012,500.0,0.00022999,120]
[346957673,1735427010196,500.0,0.00022999,120]
[346957674,1735427010470,317.93,0.00022999,120]
[346957675,1735427010528,500.0,0.00022999,120]
[346957676,1735427011783,502.607718,0.00022999,120]
[346957677,1735427012622,500.0,0.00022999,120]
[346957678,1735427012794,626.31759007,0.00022999,120]
[346957679,1735427013893,500.0,0.00022999,120]
[346957680,1735427014730,500.0,0.00022999,120]
[346957681,1735427015649,500.0,0.00022999,120]
[346957682,1735427016320,500.0,0.00022999,120]
[346957683,1735427017441,500.0,0.00022999,120]
[346957684,1735427017725,500.0,0.00022999,120]
[346957685,1735427017993,150.18,0.00022999,120]
[346957686,1735427018535,505.29269775,0.00022999,120]
[346957687,1735427018749,500.0,0.00022999,120]
[346957688,1735427019381,500.0,0.00022999,120]
[346957689,1735427020487,500.0,0.00022999,120]
[346957690,1735427022773,500.0,0.00022999,120]
[346957691,1735427029061,501.19601771,0.00022999,120]
[346957692,1735427029344,501.02284693,0.00022999,120]
[346957693,1735427029906,500.0,0.00022999,120]
[346957694,1735427031014,500.0,0.00022999,120]
[346957695,1735427031252,500.0,0.00022999,120]
[346957696,1735427031527,500.0,0.00022999,120]
[346957697,1735427031897,482.58,0.00022999,120]
[346957698,1735427034244,500.0,0.00022999,120]
[346957699,1735427034475,505.86223935,0.00022999,120]
[346957700,1735427034604,500.0,0.00022999,120]
[346957701,1735427034849,500.0,0.00022999,120]
[346957702,1735427035104,242.13,0.00022999,120]
[346957703,1735427036472,500.0,0.00022999,120]
[346957704,1735427038035,504.36714778,0.00022999,120]
[346957705,1735427038418,500.0,0.00022999,120]
[346957706,1735427038719,500.0,0.00022999,120]
[346957707,1735427038947,500.0,0.00022999,120]
[346957708,1735427039007,500.0,0.00022999,120]
[346957709,1735427039251,288.03,0.00022999,120]
[346957710,1735427040687,500.0,0.00022999,120]
[346957711,1735427043009,579.31,0.00022999,120]
[346957712,1735427043180,500.0,0.00022999,120]
[346957713,1735427043625,591.54,0.00022999,120]
[346957714,1735427043811,502.04935897,0.00022999,120]
[346957715,1735427046840,500.0,0.00022999,120]
[346957716,1735427046902,500.0,0.00022999,120]
[346957717,1735427047702,599.23,0.00022999,120]
[346957718,1735427048986,500.0,0.00022999,120]
[346957719,1735427050517,501.2381772,0.00022999,120]
[346957720,1735427051352,500.94857075,0.00022999,120]
[346957721,1735427052505,501.15201601,0.00022999,120]
[346957722,1735427053614,501.84402003,0.00022999,120]
[346957723,1735427053672,501.51530081,0.00022999,120]
[346957724,1735427055030,500.0,0.00022999,120]
[346957725,1735427056396,506.5,0.00022999,120]
[346957726,1735427056484,501.29865491,0.00022999,120]
[346957727,1735427058474,501.97036092,0.00022999,120]
[346957728,1735427058533,500.0,0.00022999,120]
[346957729,1735427059212,500.0,0.00022999,120]
[346957730,1735427059469,495.64,0.00022999,120]
[346957731,1735427059660,500.0,0.00022999,120]
[346957732,1735427060498,500.0,0.00022999,120]
[346957733,1735427060820,500.0,0.00022999,120]
[346957734,1735427061740,500.0,0.00022999,120]
[346957735,1735427062007,500.0,0.00022999,120]
[346957736,1735427062264,503.11553793,0.00022999,120]
[346957737,1735427062325,218.04,0.00022999,120]
[346957738,1735427062672,501.80669092,0.00022999,120]
[346957739,1735427062813,500.0,0.00022999,120]
[346957740,1735427064329,501.49440962,0.00022999,120]
[346957741,1735427066566,508.68927952,0.00022999,120]
[346957742,1735427067051,500.0,0.00022999,120]
[346957743,1735427067379,500.0,0.00022999,120]
[346957744,1735427068628,500.0,0.00022999,120]
[346957745,1735427068718,500.0,0.00022999,120]
[346957746,1735427068888,312.13,0.00022999,120]
[346957747,1735427069065,500.0,0.00022999,120]
[346957748,1735427069300,500.0,0.00022999,120]
[346957749,1735427071275,500.0,0.00022999,120]
[346957750,1735427071439,500.40240657,0.00022999,120]
[346957751,1735427072573,502.23103699,0.00022999,120]
[346957752,1735427073091,500.50883716,0.00022999,120]
[346957753,1735427073439,596.58030457,0.00022999,120]
[346957754,1735427074720,502.67715189,0.00022999,120]
[346957755,1735427075495,500.0,0.00022999,120]
[346957756,1735427075812,500.0,0.00022999,120]
[346957757,1735427076047,603.17,0.00022999,120]
[346957758,1735427076815,639.51,0.00022999,120]
[346957759,1735427078696,501.46279652,0.00022999,120]
[346957760,1735427080864,566.83,0.00022999,120]
[346957761,1735427081238,495.99947501,0.00022999,120]
[346957762,1735427082694,500.0,0.00022999,120]
[346957763,1735427083356,501.29624549,0.00022999,120]
[346957764,1735427085395,501.42685278,0.00022999,120]
[346957765,1735427085453,502.05061761,0.00022999,120]
[346957766,1735427086981,500.94127605,0.00022999,120]
[346957767,1735427087494,503.36918838,0.00022999,120]
[346957768,1735427087873,500.0,0.00022999,120]
[346957769,1735427088950,498.69559309,0.00022999,120]
[346957770,1735427089220,500.0,0.00022999,120]
[346957771,1735427089472,500.85535182,0.00022999,120]
[346957772,1735427089525,500.0,0.00022999,120]
[346957773,1735427089813,500.0,0.00022999,120]
[346957774,1735427089986,500.0,0.00022999,120]
[346957775,1735427090066,481.52,0.00022999,120]
[346957776,1735427090984,500.0,0.00022999,120]
[346957777,1735427091345,646.05,0.00022999,120]
[346957778,1735427092324,500.55385065,0.00022999,120]
[346957779,1735427093103,493.36576497,0.00022999,120]
[346957780,1735427094273,500.0,0.00022999,120]
[346957781,1735427094543,500.0,0.00022999,120]
[346957782,1735427094783,500.53,0.00022999,120]
[346957783,1735427094911,501.77546765,0.00022999,120]
[346957784,1735427095052,501.24723174,0.00022999,120]
[346957785,1735427095222,587.11004254,0.00022999,120]
[346957786,1735427096524,500.56720674,0.00022999,120]
[346957787,1735427097205,500.0,0.00022999,120]
[346957788,1735427097257,502.11722848,0.00022999,120]
[346957789,1735427098863,500.0,0.00022999,120]
[346957790,1735427099167,338.13,0.00022999,120]
[346957791,1735427100534,501.53488408,0.00022999,120]
[346957792,1735427101318,502.0656113,0.00022999,120]
[346957793,1735427101372,501.75211245,0.00022999,120]
[346957794,1735427105450,500.0,0.00022999,120]
[346957795,1735427107406,501.60941775,0.00022999,120]
[346957796,1735427107711,500.0,0.00022999,120]
[346957797,1735427109807,501.46438799,0.00022999,120]
[346957798,1735427109942,501.83953755,0.00022999,120]
[346957799,1735427110108,502.55245718,0.00022999,120]
[346957800,1735427111856,503.29004176,0.00022999,120]
[346957801,1735427112070,500.0,0.00022999,120]
[346957802,1735427112373,500.0,0.00022999,120]
[346957803,1735427112980,500.0,0.00022999,120]
[346957804,1735427113279,500.0,0.00022999,120]
[346957805,1735427113545,500.0,0.00022999,120]
[346957806,1735427113828,562.61,0.00022999,120]
[346957807,1735427114263,501.10561096,0.00022999,120]
[346957808,1735427118444,500.0,0.00022999,120]
[346957809,1735427119174,500.0,0.00022999,120]
[346957810,1735427119677,503.32922849,0.00022999,120]
[346957811,1735427119817,500.0,0.00022999,120]
[346957812,1735427120845,500.0,0.00022999,120]
[346957813,1735427121742,502.23913539,0.00022999,120]
[346957814,1735427122751,500.0,0.00022999,120]
[346957815,1735427122821,500.0,0.00022999,120]
[346957816,1735427122992,500.0,0.00022999,120]
[346957817,1735427123057,500.0,0.00022999,120]
[346957818,1735427123288,342.68,0.00022999,120]
[346957819,1735427123353,445.63,0.00022999,120]
[346957820,1735427123717,505.95773895,0.00022999,120]
[346957821,1735427123865,614.08,0.00022999,120]
[346957822,1735427123940,500.0,0.00022999,120]
[346957823,1735427124086,502.85333336,0.00022999,120]
[346957824,1735427125453,501.73756523,0.00022999,120]
[346957825,1735427125788,500.0,0.00022999,120]
[346957826,1735427125941,507.22750624,0.00022999,120]
[346957827,1735427126090,600.9,0.00022999,120]
[346957828,1735427127632,500.0,0.00022999,120]
[346957829,1735427127829,500.0,0.00022999,120]
[346957830,1735427129756,501.59692017,0.00022999,120]
[346957831,1735427130225,183.41006489,0.00022999,120]
[346957832,1735427131327,500.0,0.00022999,120]
[346957833,1735427132018,500.0,0.00022999,120]
[346957834,1735427133282,500.0,0.00022999,120]
[346957835,1735427133821,500.0,0.00022999,120]
[346957836,1735427135275,502.51592231,0.00022999,120]
[346957837,1735427135345,500.0,0.00022999,120]
[346957838,1735427136286,266.79852698,0.00022999,120]
[346957839,1735427136682,501.14404827,0.00022999,120]
[346957840,1735427137488,505.98776789,0.00022999,120]
[346957841,1735427138450,501.10142428,0.00022999,120]
[346957842,1735427138767,507.80972453,0.00022999,120]
[346957843,1735427139039,500.0,0.00022999,120]
[346957844,1735427139099,500.0,0.00022999,120]
[346957845,1735427139167,170.07,0.00022999,120]
[346957846,1735427139552,500.0,0.00022999,120]
[346957847,1735427139831,577.61,0.00022999,120]
[346957848,1735427141131,500.0,0.00022999,120]
[346957852,1735427141195,500.0,0.00022999,120]
[346957858,1735427141419,152.96,0.00022999,120]
[346957859,1735427142551,501.29285879,0.00022999,120]
[346957860,1735427143215,503.55700039,0.00022999,120]
[346957861,1735427143921,500.0,0.00022999,120]
[346957862,1735427144170,500.0,0.00022999,120]
[346957863,1735427144478,501.17443396,0.00022999,120]
[346957864,1735427144613,463.33,0.00022999,120]
[346957865,1735427145450,500.0,0.00022999,120]
[346957866,1735427146148,500.0,0.00022999,120]
[346957867,1735427146718,500.0,0.00022999,120]
[346957868,1735427146889,500.0,0.00022999,120]
[346957869,1735427147172,500.0,0.00022999,120]
[346957870,1735427147779,176.59,0.00022999,120]
[346957871,1735427148060,500.0,0.00022999,120]
[346957872,1735427148193,500.0,0.00022999,120]
[346957873,1735427148623,500.0,0.00022999,120]
[346957874,1735427149291,308.62,0.00022999,120]
[346957875,1735427150560,500.0,0.00022999,120]
[346957876,1735427150850,500.0,0.00022999,120]
[346957877,1735427151151,485.85,0.00022999,120]
[346957878,1735427151756,503.78837817,0.00022999,120]
[346957879,1735427152225,501.78764387,0.00022999,120]
[346957880,1735427154458,500.0,0.00022999,120]
[346957881,1735427154796,506.23342672,0.00022999,120]
[346957882,1735427155668,502.5677511,0.00022999,120]
[346957883,1735427157276,502.29813313,0.00022999,120]
[346957884,1735427157453,576.00896151,0.00022999,120]
[346957885,1735427157573,500.0,0.00022999,120]
[346957886,1735427157774,500.0,0.00022999,120]
[346957887,1735427158072,502.16953125,0.00022999,120]
[346957888,1735427158723,500.0,0.00022999,120]
[346957889,1735427159014,500.0,0.00022999,120]
[346957890,1735427159486,500.0,0.00022999,120]
[346957891,1735427159575,366.39,0.00022999,120]
[346957892,1735427159885,501.20108003,0.00022999,120]
[346957893,1735427160446,502.40304495,0.00022999,120]
[346957894,1735427160549,502.29869735,0.00022999,120]
[346957895,1735427160994,500.73083888,0.00022999,120]
[346957896,1735427162969,500.0,0.00022999,120]
[346957897,1735427163036,502.16503569,0.00022999,120]
[346957898,1735427163132,500.0,0.00022999,120]
[346957899,1735427163533,500.0,0.00022999,120]
[346957900,1735427163618,500.0,0.00022999,120]
[346957901,1735427164668,500.0,0.00022999,120]
[346957902,1735427165764,500.0,0.00022999,120]
[346957903,1735427166549,500.0,0.00022999,120]
[346957904,1735427167135,502.52602112,0.00022999,120]
[346957905,1735427167345,189.23,0.00022999,120]
[346957906,1735427168065,500.0,0.00022999,120]
[346957907,1735427168150,408.81,0.00022999,120]
[346957908,1735427169769,500.0,0.00022999,120]
[346957909,1735427170174,612.59,0.00022999,120]
[346957910,1735427172960,500.0,0.00022999,120]
[346957911,1735427173231,455.98,0.00022999,120]
[346957912,1735427173301,503.35290894,0.00022999,120]
[346957913,1735427174610,500.0,0.00022999,120]
[346957914,1735427175267,504.44029453,0.00022999,120]
[346957915,1735427176049,502.03715577,0.00022999,120]
[346957916,1735427176976,500.58145549,0.00022999,120]